bitfinex/quotes_ETHUSD_20240822
["timestamp","ask_amount","ask_price","bid_price","bid_amount"]
[1724352586507,7.63519,2619.5,2618.7,3.89500823]
[1724352586800,3.8177,2619.4,2618.8,3.89487814]
[1724352587092,3.8177,2619.4,2618.9,0.38948781]
[1724352587701,3.81758,2619.5,2618.9,0.38948781]
[1724352587999,3.81729,2619.7,2619.0,7.63625]
[1724352588301,3.81729,2619.7,2619.1,3.81807]
[1724352588600,3.81752,2619.5,2618.9,3.38948781]
[1724352588902,3.81769,2619.4,2618.9,3.38948781]
[1724352589890,3.81752,2619.5,2618.9,3.38948781]
[1724352590107,3.81752,2619.5,2619.0,0.72079478]
[1724352590332,7.63515,2619.5,2619.0,0.72079478]
[1724352590487,3.81768,2619.4,2618.9,3.38948781]
[1724352591201,3.81749,2619.6,2618.9,7.20785781]
[1724352591632,0.04554826,2619.5,2618.9,7.20785781]
[1724352591842,3.86310826,2619.5,2618.9,7.20785781]
[1724352592182,3.86310826,2619.5,2618.9,42.20785781]
[1724352593008,3.86310826,2619.5,2618.9,38.38948781]
[1724352593190,3.81756,2619.5,2618.9,38.38948781]
[1724352593746,3.81767,2619.4,2618.9,38.38948781]
[1724352595257,3.81767,2619.4,2618.9,3.0]
[1724352595439,3.81767,2619.4,2618.8,6.81849]
[1724352595760,0.04554826,2619.3,2618.8,10.63695]
[1724352596058,3.8173,2619.7,2619.1,3.81802]
[1724352597010,0.04554826,2619.6,2619.1,3.81802]
[1724352597212,3.8173,2619.7,2619.1,3.81802]
[1724352597962,0.04554826,2619.6,2619.1,3.81802]
[1724352598328,3.86292826,2619.6,2619.1,3.81802]
[1724352598719,3.86292826,2619.6,2618.9,7.63656]
[1724352599765,3.86292826,2619.6,2619.0,3.81821]
[1724352600389,3.86292826,2619.6,2619.1,3.81806]
[1724352600390,0.04554826,2619.6,2619.1,3.81806]
[1724352601336,3.8173,2619.7,2619.1,0.85919941]
[1724352601554,3.81753,2619.5,2618.9,4.77393411]
[1724352601939,0.0460666,2619.4,2619.0,3.81824]
[1724352602425,3.8638266,2619.4,2618.9,0.95568325]
[1724352602773,3.81776,2619.4,2618.9,0.95568325]
[1724352602976,3.81776,2619.4,2618.9,0.95568639]
[1724352603476,3.81776,2619.4,2618.8,6.81844]
[1724352603686,3.81835,2619.0,2618.8,0.95575341]
[1724352603895,6.60448,2619.4,2618.3,4.201167]
[1724352603896,3.81895,2618.6,2618.3,7.36]
[1724352604176,3.81895,2618.6,2618.1,0.95597924]
[1724352604375,3.81862,2618.8,2618.1,3.81955]
[1724352604376,0.04600016,2618.5,2618.1,3.81955]
[1724352604545,3.81876,2618.7,2618.1,0.95604014]
[1724352604725,3.819,2618.5,2618.1,0.95604014]
[1724352604925,3.819,2618.5,2618.0,17.22572945]
[1724352605124,0.04600016,2618.4,2618.1,3.81954]
[1724352605562,3.81876,2618.7,2618.1,3.81954]
[1724352605739,3.8185,2618.9,2618.3,3.81917]
[1724352605740,4.41720253,2618.9,2618.3,3.81917]
[1724352606037,8.23573253,2618.9,2618.3,3.81917]
[1724352606274,0.04559473,2618.8,2618.3,3.81917]
[1724352607650,0.04559473,2618.8,2618.4,3.81909]
[1724352608082,0.04559473,2618.8,2618.3,3.81927]
[1724352608243,3.86413473,2618.8,2618.2,7.63871]
[1724352608448,4.41718253,2618.9,2618.3,3.81924]
[1724352608645,3.86415138,2618.8,2618.3,3.81924]
[1724352609028,0.04560138,2618.8,2618.3,3.81924]
[1724352609375,0.04560138,2618.8,2618.4,3.81912]
[1724352610478,0.04560138,2618.8,2618.1,3.81945]
[1724352610678,0.04560138,2618.8,2618.3,3.81919]
[1724352610985,3.81855,2618.8,2618.3,3.81919]
[1724352611486,0.04509626,2618.7,2618.3,3.81919]
[1724352611834,3.81855,2618.8,2618.3,3.81919]
[1724352612060,0.04504973,2618.7,2618.3,3.81919]
[1724352612269,0.59871253,2618.9,2618.3,7.63832]
[1724352612527,0.04504973,2618.8,2618.3,3.81913]
[1724352613373,0.04504973,2618.8,2618.4,3.8191]
[1724352614237,0.04504973,2618.8,2618.3,3.81913]
[1724352614440,0.84404837,2618.8,2618.4,3.8191]
[1724352614673,0.84404837,2618.8,2618.4,0.763823]
[1724352614892,0.04504973,2618.8,2618.7,3.81868]
[1724352615241,0.79899864,2619.2,2618.9,3.81838]
[1724352615448,0.04505637,2619.1,2618.9,3.81838]
[1724352615802,0.79899864,2619.3,2619.0,3.81812]
[1724352615944,0.79899864,2619.3,2618.9,3.81838]
[1724352616326,5.01603474,2619.5,2618.9,3.81838]
[1724352616327,0.04505637,2619.2,2618.9,3.81838]
[1724352616498,0.04505637,2619.2,2618.7,6.8186]
[1724352616699,0.79899864,2619.2,2618.7,10.63718]
[1724352616851,0.04505637,2619.1,2618.7,10.75102067]
[1724352617039,0.79899864,2619.2,2618.7,14.56963067]
[1724352617239,0.84405501,2619.1,2618.9,3.81838]
[1724352617444,0.79899864,2619.1,2618.9,3.81838]
[1724352617900,0.79899864,2619.1,2618.7,10.75100067]
[1724352618194,0.79899864,2619.1,2618.8,3.81846]
[1724352618402,0.23926039,2619.3,2618.9,6.81837]
[1724352618576,0.79927155,2619.1,2618.9,3.81837]
[1724352618945,0.04505637,2619.0,2618.9,3.81837]
[1724352619161,0.79927155,2619.1,2618.9,6.81837]
[1724352619401,0.79927155,2619.1,2618.9,3.81837]
[1724352619896,1.19890732,2619.2,2618.9,3.81837]
[1724352619897,0.79927155,2619.0,2618.9,3.81837]
[1724352620198,0.79927155,2619.0,2618.9,6.81837]
[1724352620341,0.79927155,2619.0,2618.9,8.38999799]
[1724352620547,0.79927155,2619.2,2619.0,3.81825]
[1724352620773,1.19890732,2619.3,2619.2,3.81795]
[1724352620774,0.79927155,2619.3,2619.2,3.81795]
[1724352621194,0.84499261,2619.3,2619.2,3.81795]
[1724352622708,2.6689,2619.2,2618.2,11.17939]
[1724352622863,2.6689,2619.2,2618.2,3.81934]
[1724352622864,0.79961715,2618.6,2618.2,3.81934]
[1724352623201,0.84539137,2618.5,2618.3,3.81923]
[1724352623405,0.84539137,2618.5,2618.3,7.63846]
[1724352623600,0.84539137,2618.5,2618.3,7.63837]
[1724352623898,0.04577422,2618.5,2618.4,7.63824]
[1724352624053,0.04577422,2618.5,2618.4,10.63824]
[1724352624251,0.79961715,2618.7,2618.6,3.81883]
[1724352624489,0.84528504,2618.7,2618.6,3.81883]
[1724352624668,0.84528504,2618.7,2618.6,7.63766]
[1724352625482,0.84541894,2618.7,2618.6,7.63766]
[1724352625685,0.84541703,2618.7,2618.6,7.63766]
[1724352626507,0.84538506,2618.7,2618.6,3.81883]
[1724352627000,0.04566789,2618.7,2618.6,3.81883]
[1724352627403,1.5992343,2618.9,2618.7,3.81868]
[1724352627632,1.1995975,2618.8,2618.7,3.81868]
[1724352629869,1.1995975,2618.8,2618.5,3.81887]
[1724352630080,0.79972026,2618.7,2618.6,3.81873]
[1724352630960,1.1995975,2618.8,2618.6,3.81873]
[1724352631179,0.79972723,2618.7,2618.6,3.81873]
[1724352631405,1.1995975,2618.7,2618.6,3.81873]
[1724352633377,1.1995975,2618.7,2618.4,6.81912]
[1724352633590,1.1995975,2618.6,2618.2,7.36]
[1724352633909,3.81953,2618.2,2617.4,3.82048]
[1724352634055,3.81953,2618.2,2617.2,10.36855]
[1724352634056,4.61998882,2617.9,2617.2,10.36855]
[1724352634257,0.80005882,2617.7,2617.2,3.82073]
[1724352634461,0.80005882,2617.6,2617.2,3.82073]
[1724352634656,0.80005882,2617.4,2616.8,7.6427]
[1724352634959,0.80005882,2617.2,2616.8,4.3495321]
[1724352635416,1.20008824,2617.3,2616.8,4.3495321]
[1724352635417,0.80005882,2617.3,2616.9,3.8213]
[1724352635885,0.80005882,2617.3,2616.8,4.3495321]
[1724352636091,0.80005882,2617.3,2617.0,3.82115]
[1724352636293,0.80005882,2617.4,2617.0,3.82115]
[1724352636618,0.04516274,2617.3,2617.0,3.82115]
[1724352636766,0.84522156,2617.3,2617.0,3.82115]
[1724352637080,0.04516274,2617.3,2617.0,3.82115]
[1724352638175,0.04516274,2617.3,2617.2,3.82087]
[1724352638376,0.80005882,2617.6,2617.2,3.82087]
[1724352638912,0.04448432,2617.5,2617.2,3.82087]
[1724352639426,0.04448432,2617.5,2617.4,3.82058]
[1724352639641,0.04448432,2617.5,2617.0,3.82107]
[1724352639780,4.62021882,2617.7,2617.2,3.82084]
[1724352640134,4.62021882,2617.7,2617.0,7.6421]
[1724352640276,3.86477432,2617.6,2617.0,3.82103]
[1724352640477,0.04448432,2617.6,2617.0,3.82103]
[1724352640882,0.04448432,2617.6,2617.0,0.73492221]
[1724352641082,0.80005882,2617.8,2617.2,3.82073]
[1724352641324,0.80005882,2617.8,2616.9,3.0]
[1724352641624,0.04448432,2617.7,2617.1,3.82093]
[1724352641993,0.04448432,2617.7,2617.2,3.82076]
[1724352642529,0.04448432,2617.7,2617.3,3.82066]
[1724352642774,0.80005882,2617.8,2617.3,4.584802]
[1724352642904,0.80005882,2617.8,2617.3,3.82065]
[1724352642905,0.04448432,2617.6,2617.3,3.82065]
[1724352643090,0.80005882,2617.8,2617.3,3.82063]
[1724352643436,0.04448432,2617.7,2617.3,3.82063]
[1724352643727,3.82002,2617.8,2617.3,3.82063]
[1724352643935,0.04358656,2617.7,2617.3,3.82063]
[1724352644095,11.02185882,2617.9,2617.3,3.82063]
[1724352644429,3.86366656,2617.8,2617.3,3.82063]
[1724352644638,4.66372538,2617.8,2617.3,3.82063]
[1724352645306,3.86366656,2617.8,2617.3,3.82063]
[1724352646200,0.04358656,2617.8,2617.3,3.82063]
[1724352646400,0.04358656,2617.8,2617.5,3.82043]
[1724352646597,0.04358656,2617.8,2617.5,3.89683334]
[1724352646932,0.04358656,2617.8,2617.7,3.82014]
[1724352647239,2.684,2618.2,2617.7,3.82014]
[1724352647386,0.04358656,2617.8,2617.7,3.82014]
[1724352647736,0.04372627,2617.8,2617.7,0.764054]
[1724352648031,3.48405882,2618.2,2617.7,8.404334]
[1724352648186,0.04372627,2617.8,2617.7,4.584194]
[1724352648385,3.48405882,2618.2,2617.7,4.584194]
[1724352648591,0.04372627,2617.8,2617.7,3.82014]
[1724352648801,7.30358882,2618.2,2617.7,3.82014]
[1724352649001,0.04372627,2617.8,2617.7,3.82014]
[1724352649237,7.30347882,2618.2,2617.7,3.82014]
[1724352649396,0.04372627,2617.8,2617.7,4.58419]
[1724352649602,3.48405882,2618.2,2617.7,4.58419]
[1724352649782,0.04372627,2617.8,2617.7,3.82014]
[1724352649986,7.30349882,2618.2,2617.7,3.82014]
[1724352650184,0.04372627,2617.8,2617.7,3.82014]
[1724352650417,7.30349882,2618.2,2617.7,3.82014]
[1724352650618,0.04372627,2617.8,2617.7,3.82014]
[1724352650817,3.48405882,2618.2,2617.7,4.584181]
[1724352651016,0.04372627,2617.8,2617.7,3.82014]
[1724352651232,3.48405882,2618.2,2617.8,3.81999]
[1724352651675,0.04372627,2618.1,2617.7,3.82006]
[1724352652475,0.04372627,2618.1,2617.8,3.82]
[1724352652655,0.04372627,2618.1,2617.9,3.81977]
[1724352653024,0.04372627,2618.1,2618.0,3.8197]
[1724352653422,0.04372627,2618.1,2617.8,3.81985]
[1724352653662,4.61939882,2618.3,2617.8,3.81985]
[1724352653813,0.04379945,2618.0,2617.9,3.81985]
[1724352654053,0.04379945,2618.0,2617.8,3.81999]
[1724352654257,0.80005882,2618.3,2617.8,3.81999]
[1724352654258,0.80005882,2618.2,2617.8,3.81999]
[1724352654560,0.04379945,2618.1,2617.8,3.81999]
[1724352656213,0.04379945,2618.1,2617.8,3.81993]
[1724352656378,0.04379945,2618.1,2617.9,0.381993]
[1724352656585,0.04379945,2618.1,2617.9,3.81978]
[1724352656780,0.80005882,2618.3,2617.9,3.81978]
[1724352657312,0.04379945,2618.2,2617.9,3.81978]
[1724352657472,0.80005882,2618.3,2617.9,3.81978]
[1724352657683,0.04407218,2618.2,2617.9,3.81978]
[1724352657991,0.80005882,2618.3,2617.9,3.81978]
[1724352658203,0.04407218,2618.1,2617.9,3.81978]
[1724352658360,0.80005882,2618.3,2617.9,3.81978]
[1724352658559,0.04407218,2618.0,2617.9,3.81978]
[1724352658760,0.80005882,2618.3,2617.9,3.81978]
[1724352659005,0.04407218,2618.0,2617.9,3.81978]
[1724352659156,0.80005882,2618.3,2617.9,3.81978]
[1724352659360,0.04407218,2618.0,2617.9,3.81978]
[1724352659675,0.80005882,2618.3,2618.0,3.81968]
[1724352659860,7.34016824,2618.5,2618.0,3.81968]
[1724352659861,6.94013882,2618.5,2618.0,7.63929]
[1724352660057,4.61903882,2618.5,2618.0,7.63929]
[1724352660888,4.61903882,2618.5,2618.0,3.81961]
[1724352661409,0.80005882,2618.5,2618.1,3.81946]
[1724352661631,0.80005882,2618.5,2618.2,3.81934]
[1724352661930,4.61904882,2618.5,2617.9,3.81971]
[1724352662083,3.81912,2618.4,2617.9,4.79431758]
[1724352662405,3.81928,2618.3,2617.8,3.81989]
[1724352662575,3.81928,2618.3,2617.9,3.0]
[1724352662780,3.81913,2618.4,2617.9,6.81983]
[1724352663528,3.81913,2618.4,2617.9,6.81979]
[1724352663731,3.81913,2618.4,2617.9,10.63954]
[1724352664225,3.81963,2618.1,2617.6,3.82028]
[1724352664539,0.80005882,2618.2,2617.8,3.81992]
[1724352664680,0.80005882,2618.3,2618.1,3.81948]
[1724352664880,0.80005882,2618.4,2618.1,3.81948]
[1724352665231,0.80005882,2618.4,2618.0,3.81962]
[1724352666007,0.80005882,2618.4,2618.0,7.63924]
[1724352666190,5.01914824,2618.5,2618.0,3.81962]
[1724352666191,0.80005882,2618.3,2618.0,3.81962]
[1724352666627,0.04417861,2618.2,2618.0,3.81962]
[1724352666979,0.80005882,2618.4,2618.0,3.81962]
[1724352667176,0.04417861,2618.1,2618.0,3.81962]
[1724352667406,0.80005882,2618.4,2618.0,3.81962]
[1724352667407,0.80005882,2618.3,2618.0,3.81962]
[1724352667625,0.04417861,2618.1,2618.0,3.81962]
[1724352668138,0.80005882,2618.3,2618.0,3.81962]
[1724352668333,0.04417861,2618.2,2618.0,3.81962]
[1724352668496,0.80005882,2618.2,2617.8,3.8199]
[1724352668838,0.84423743,2618.1,2617.8,3.8199]
[1724352669181,0.84423743,2618.1,2617.8,7.6398]
[1724352669428,0.84423743,2618.1,2617.8,3.8199]
[1724352670291,0.84423743,2618.1,2617.8,7.63981]
[1724352670488,0.84423743,2618.1,2617.8,3.8199]
[1724352670705,0.84423743,2618.1,2617.8,7.63983]
[1724352671084,0.84423743,2618.1,2617.8,3.8199]
[1724352671890,0.84423743,2618.1,2617.9,3.81982]
[1724352672430,0.84423743,2618.1,2617.9,3.81977]
[1724352672599,0.04417861,2618.1,2618.0,7.6394]
[1724352672856,0.04417861,2618.1,2618.0,3.8197]
[1724352673213,0.84423743,2618.1,2618.0,3.8197]
[1724352675983,0.84423743,2618.1,2617.9,8.31086237]
[1724352676412,0.80005882,2618.0,2617.9,3.81974]
[1724352676738,0.80005882,2618.0,2617.7,3.0]
[1724352676739,0.04420524,2618.0,2617.7,3.0]
[1724352676940,0.04420524,2618.0,2617.6,6.82026]
[1724352676941,0.79984357,2617.9,2617.6,6.82026]
[1724352677239,0.79984357,2617.8,2617.6,6.82026]
[1724352677541,0.04420524,2617.7,2617.6,6.82026]
[1724352677710,0.79984357,2617.8,2617.6,6.82026]
[1724352677907,0.04420524,2617.7,2617.6,6.82029]
[1724352678108,0.79984357,2617.8,2617.7,3.82014]
[1724352678307,0.84404881,2617.8,2617.7,6.82014]
[1724352678817,0.04420524,2617.8,2617.7,6.82014]
[1724352679195,1.24429348,2617.8,2617.7,6.82014]
[1724352680628,0.04420524,2617.8,2617.7,6.82014]
[1724352680796,0.04420524,2617.8,2617.7,3.82014]
[1724352680991,0.04420524,2617.8,2617.5,3.82035]
[1724352681193,1.20103393,2617.7,2617.3,3.82062]
[1724352681454,0.80074259,2617.4,2617.3,3.82062]
[1724352681743,1.24508619,2617.4,2617.2,3.8208]
[1724352681900,0.80090673,2617.3,2617.2,3.8208]
[1724352682343,0.84495233,2617.3,2617.2,3.8208]
[1724352682746,1.24507953,2617.3,2617.2,3.8208]
[1724352682946,0.84506528,2617.3,2617.2,10.64167]
[1724352683096,0.84506528,2617.3,2617.2,11.705837]
[1724352683303,0.80101968,2617.4,2617.3,7.64146]
[1724352683532,0.0440456,2617.4,2617.3,16.2501927]
[1724352683852,0.0440456,2617.4,2617.3,16.8001927]
[1724352684202,0.80101968,2617.6,2617.5,7.64086]
[1724352684724,0.84495219,2617.6,2617.5,11.46129]
[1724352684895,0.80101968,2617.6,2617.5,13.14121927]
[1724352685248,1.20103393,2617.7,2617.6,7.64058]
[1724352687917,1.60011765,2617.8,2617.7,3.82014]
[1724352688741,2.00360813,2617.9,2617.7,3.82014]
[1724352689900,1.60306819,2617.8,2617.7,3.82014]
[1724352690295,2.00360813,2617.9,2617.7,3.82014]
[1724352691308,2.36219611,2617.8,2617.7,3.82014]
[1724352691672,6.18226611,2617.8,2617.3,14.18066]
[1724352691870,1.20268888,2617.5,2617.3,14.18066]
[1724352692051,1.20268888,2617.4,2617.3,7.36]
[1724352692252,1.20268888,2617.4,2617.3,11.18073]
[1724352692253,1.60358517,2617.4,2617.3,11.18073]
[1724352692471,1.60358517,2617.5,2617.3,11.18073]
[1724352692656,1.60370079,2617.5,2617.4,3.82058]
[1724352693028,2.00448147,2617.6,2617.4,3.82058]
[1724352693228,1.6036923,2617.5,2617.4,3.82058]
[1724352695876,1.6036923,2617.5,2617.4,7.64116]
[1724352696650,1.64628536,2617.5,2617.4,7.64116]
[1724352700058,0.04259306,2617.5,2617.4,7.64116]
[1724352700384,6.15072,2618.0,2617.5,3.82037]
[1724352700527,0.04259306,2617.9,2617.5,3.82037]
[1724352702076,0.04259306,2617.9,2617.4,3.82051]
[1724352702370,3.86246306,2617.9,2617.4,3.82051]
[1724352702582,3.86246306,2617.9,2617.4,7.64102]
[1724352703160,3.86246306,2617.9,2617.5,3.8204]
[1724352703580,0.04259306,2617.9,2617.5,3.8204]
[1724352704082,6.15072,2618.0,2617.5,3.8204]
[1724352704799,0.04259306,2617.9,2617.5,3.8204]
[1724352706773,0.04259306,2617.9,2617.6,3.82029]
[1724352707552,0.04259306,2617.9,2617.4,7.64099]
[1724352707752,3.86245306,2617.9,2617.4,3.82048]
[1724352708403,5.50345306,2617.9,2617.4,3.82048]
[1724352708608,1.68359306,2617.9,2617.5,3.82042]
[1724352709414,0.04259306,2617.9,2617.5,3.82042]
[1724352709571,0.04259306,2617.9,2617.8,3.82]
[1724352709910,2.4459,2618.3,2617.9,3.81976]
[1724352711008,3.81942,2618.2,2617.7,3.82011]
[1724352711682,0.04100493,2618.1,2617.7,3.82011]
[1724352713305,1.60256072,2617.8,2617.7,3.82011]
[1724352713456,1.60256072,2617.9,2617.8,7.64]
[1724352713657,1.2019812,2617.9,2617.8,9.281]
[1724352713857,1.24298613,2617.9,2617.8,9.281]
[1724352715777,1.24298613,2617.9,2617.8,5.461]
[1724352715962,0.04100493,2617.9,2617.8,5.461]
[1724352716157,1.64356565,2617.9,2617.8,5.461]
[1724352722336,1.64356565,2617.9,2617.7,3.82013]
[1724352722499,1.60321297,2617.8,2617.7,7.6402]
[1724352722827,1.64308296,2617.8,2617.7,3.82007]
[1724352724233,1.64308296,2617.8,2617.7,4.41770555]
[1724352726248,1.64308296,2617.8,2617.7,4.41770871]
[1724352728139,1.64308296,2617.8,2617.7,8.23784871]
[1724352730662,1.64308296,2617.8,2617.7,7.64021]
[1724352730864,1.64308296,2617.8,2617.7,8.2378504]
[1724352732162,1.64308296,2617.8,2617.7,4.4177104]
[1724352733291,1.64308296,2617.8,2617.7,4.41771018]
[1724352735189,1.64308296,2617.8,2617.7,0.59764018]
[1724352735524,2.04394368,2617.8,2617.7,0.59764018]
[1724352736145,2.04394368,2617.8,2617.6,3.0]
[1724352736370,1.60335179,2617.7,2617.6,6.82029]
[1724352736588,1.64319512,2617.7,2617.6,7.41797344]
[1724352737103,0.03984333,2617.7,2617.6,7.41797344]
[1724352737393,1.6033884,2617.7,2617.6,7.41797344]
[1724352737590,1.64323173,2617.7,2617.6,7.41797344]
[1724352738095,0.03984333,2617.7,2617.6,7.41797344]
[1724352738444,2.00407369,2617.8,2617.6,7.41797344]
[1724352738641,0.03984333,2617.7,2617.6,6.82029]
[1724352738888,0.03984333,2617.7,2617.6,7.41797409]
[1724352739092,2.00407369,2617.8,2617.6,7.41797409]
[1724352739388,2.00407369,2617.8,2617.6,6.82029]
[1724352739389,0.03984333,2617.7,2617.6,6.82029]
[1724352739692,2.00407369,2617.8,2617.6,7.41797445]
[1724352739892,0.03984333,2617.7,2617.6,6.82029]
[1724352740043,0.03984333,2617.7,2617.6,7.41797514]
[1724352740388,2.00407369,2617.8,2617.7,3.82014]
[1724352740598,2.00407369,2617.8,2617.7,4.41782514]
[1724352741007,2.00407369,2617.8,2617.7,0.59768514]
[1724352741668,2.04391702,2617.8,2617.7,0.59768514]
[1724352742083,2.0444208,2617.8,2617.7,4.41782514]
[1724352742822,2.0444208,2617.8,2617.7,4.41782252]
[1724352745770,0.03984333,2617.8,2617.7,3.82014]
[1724352745973,2.40549296,2618.0,2617.7,4.41782287]
[1724352746172,0.03978329,2617.9,2617.7,3.82014]
[1724352746672,0.03978329,2617.9,2617.8,3.82]
[1724352747473,0.03978329,2617.9,2617.8,4.41767787]
[1724352749340,0.03978329,2617.9,2617.8,3.82]
[1724352749482,0.03978329,2617.9,2617.8,4.41766882]
[1724352750816,0.03978329,2617.9,2617.8,8.23766882]
[1724352751022,0.03978329,2617.9,2617.8,9.87866882]
[1724352751023,2.0450731,2617.9,2617.8,9.87866882]
[1724352751400,2.0450731,2617.9,2617.8,11.7904827]
[1724352751606,0.84184481,2617.9,2617.8,25.0896827]
[1724352751807,0.84184481,2617.9,2617.8,25.6396827]
[1724352752005,1.60418206,2618.2,2617.8,25.6396827]
[1724352752006,4.81e-06,2618.2,2617.9,7.08381827]
[1724352752206,1.20309228,2618.5,2618.2,3.81941]
[1724352752434,1.20309228,2618.6,2618.5,7.63796]
[1724352752640,1.60418206,2618.7,2618.5,7.63796]
[1724352752641,1.20172444,2618.7,2618.5,3.005808]
[1724352752803,1.20172444,2618.7,2618.5,1.641]
[1724352753131,1.20172444,2618.7,2618.6,7.63766]
[1724352753132,1.60418206,2618.7,2618.6,7.63766]
[1724352753536,1.20124149,2618.7,2618.6,7.63766]
[1724352753733,1.20124149,2618.7,2618.6,8.93771946]
[1724352754236,1.60418206,2618.8,2618.7,3.81868]
[1724352755237,1.60418206,2618.8,2618.6,8.93762946]
[1724352755511,1.20085507,2618.7,2618.6,8.93762946]
[1724352756752,1.60418206,2618.9,2618.7,3.81868]
[1724352756753,1.20085507,2618.8,2618.7,3.81868]
[1724352757352,1.20085507,2618.8,2618.7,5.45968]
[1724352759562,0.03712431,2618.8,2618.7,5.45968]
[1724352761950,0.83635934,2618.8,2618.7,5.45968]
[1724352765368,0.03712431,2618.8,2618.7,5.45968]
[1724352770014,0.03712431,2618.8,2618.7,10.60020795]
[1724352770193,0.79923503,2619.2,2618.7,9.78152795]
[1724352770517,0.79923503,2619.4,2619.1,5.4591]
[1724352770682,0.79923503,2619.4,2619.2,4.3638]
[1724352770869,0.79923503,2619.5,2619.2,4.3638]
[1724352771066,0.79923503,2619.5,2619.3,5.45873]
[1724352771272,0.79923503,2619.5,2619.3,9.27646]
[1724352771503,0.79923503,2619.6,2619.3,5.45873]
[1724352771699,0.03859848,2619.4,2619.3,5.45873]
[1724352771899,0.79923503,2619.6,2619.3,5.45873]
[1724352772106,0.03859848,2619.4,2619.3,5.45873]
[1724352772305,0.79923503,2619.6,2619.3,5.45873]
[1724352772473,0.03859848,2619.4,2619.3,5.45873]
[1724352772812,0.79923503,2619.6,2619.4,3.81764]
[1724352773576,0.79923503,2619.7,2619.4,3.81764]
[1724352774526,0.79923503,2619.7,2619.3,5.4588]
[1724352774699,0.79923503,2619.7,2619.3,3.8178]
[1724352776426,0.79923503,2619.7,2619.3,4.976786]
[1724352776593,0.79923503,2619.7,2619.4,3.81765]
[1724352777435,4.61633503,2619.8,2619.4,3.81765]
[1724352778829,4.61633503,2619.8,2619.3,2.799986]
[1724352779033,4.61633503,2619.8,2619.3,6.617776]
[1724352780299,4.61633503,2619.8,2619.3,6.857776]
[1724352780701,8.43350503,2619.8,2619.3,6.857776]
[1724352780905,1.641,2619.7,2619.3,0.24]
[1724352781241,7.63519,2619.5,2619.3,0.24]
[1724352781448,3.81754,2619.5,2619.3,0.24]
[1724352782142,10.90425503,2619.4,2619.3,0.24]
[1724352782350,15.52686206,2619.4,2619.3,0.24]
[1724352782498,15.91465146,2619.4,2619.3,0.24]
[1724352782695,13.92268,2619.4,2619.3,0.24]
[1724352784195,10.10502,2619.4,2619.3,0.24]
[1724352784513,13.73930796,2619.4,2619.3,0.24]
[1724352784697,13.34077299,2619.4,2619.3,0.24]
[1724352786536,11.69977299,2619.4,2619.3,0.24]
[1724352786719,11.73898157,2619.4,2619.3,0.24]
[1724352787053,10.14373177,2619.4,2619.3,0.24]
[1724352788107,12.137173,2619.4,2619.3,0.24]
[1724352788446,10.14373177,2619.4,2619.3,0.24]
[1724352788607,12.137173,2619.4,2619.3,0.24]
[1724352789590,12.13907169,2619.4,2619.3,0.24]
[1724352791102,8.32141169,2619.4,2619.3,0.24]
[1724352791556,2.03405169,2619.4,2619.3,0.24]
[1724352791847,5.85171169,2619.4,2619.3,0.24]
[1724352792209,3.85637177,2619.4,2619.3,0.24]
[1724352792407,5.8528931,2619.4,2619.3,0.24]
[1724352792643,3.85637177,2619.4,2619.3,0.24]
[1724352793366,7.67403177,2619.4,2619.3,0.24]
[1724352794665,7.8400097,2619.4,2619.3,0.24]
[1724352795157,7.84000872,2619.4,2619.3,0.24]
[1724352795356,4.02234872,2619.4,2619.3,0.24]
[1724352795541,6.25379146,2619.4,2619.3,0.24]
[1724352795924,3.85637177,2619.4,2619.3,0.24]
[1724352796628,6.25379146,2619.4,2619.3,0.24]
[1724352798424,3.85637177,2619.4,2619.3,0.24]
[1724352798624,10.07533213,2619.4,2619.3,0.24]
[1724352798868,13.92729177,2619.4,2619.3,0.24]
[1724352799732,16.72910027,2619.4,2619.3,0.24]
[1724352801839,13.92729177,2619.4,2619.3,0.24]
[1724352802373,13.92729177,2619.4,2618.0,6.08472]
[1724352802374,6.29197177,2619.4,2618.0,6.08472]
[1724352802660,0.80058818,2618.2,2618.0,2.2651]
[1724352802873,0.80058818,2618.1,2618.0,2.2651]
[1724352803022,0.80058818,2618.1,2618.0,2.873584]
[1724352803023,0.8390533,2618.1,2618.0,2.873584]
[1724352803745,0.8390533,2618.1,2618.0,6.693284]
[1724352804567,0.8390533,2618.1,2618.0,9.693284]
[1724352805289,0.03846512,2618.1,2618.0,13.512984]
[1724352805904,1.20088228,2618.4,2618.3,3.81927]
[1724352805905,0.80058818,2618.4,2618.3,3.81927]
[1724352806253,0.8382863,2618.4,2618.3,3.81927]
[1724352806960,0.8382863,2618.4,2618.3,4.583133]
[1724352807286,1.2385804,2618.4,2618.2,7.63869]
[1724352807497,1.2385804,2618.4,2618.2,3.81933]
[1724352807498,0.80002615,2618.3,2618.2,3.81933]
[1724352807700,0.83772427,2618.4,2618.2,3.81933]
[1724352807878,0.80002615,2618.4,2618.2,5.1705664]
[1724352808187,0.03769812,2618.3,2618.2,5.1705664]
[1724352808976,3.81942,2618.2,2617.8,7.36]
[1724352809181,3.82023,2617.7,2617.2,2.3015]
[1724352809394,0.80007741,2617.6,2617.2,6.12223]
[1724352809646,0.03753132,2617.6,2617.5,3.82043]
[1724352810199,7.35141744,2617.6,2617.1,3.82093]
[1724352810380,0.79966824,2617.5,2617.1,3.82093]
[1724352810564,0.83717955,2617.5,2617.1,3.82093]
[1724352810862,0.79966824,2617.4,2617.2,3.82087]
[1724352811182,0.79966824,2617.5,2616.9,3.8212]
[1724352811386,0.03751131,2617.3,2617.1,3.821]
[1724352811690,0.79966824,2617.5,2617.1,3.821]
[1724352811899,2.33091131,2617.2,2616.7,3.82152]
[1724352812230,0.83717955,2617.1,2616.7,3.8216]
[1724352812552,0.83717955,2617.1,2616.4,3.82198]
[1724352812752,0.83717955,2617.1,2616.9,3.82124]
[1724352813049,0.83717955,2617.1,2617.0,3.82116]
[1724352813250,0.83717955,2617.1,2616.5,3.82189]
[1724352813251,3.82124,2617.0,2616.5,3.82189]
[1724352813489,0.79966824,2616.9,2616.5,3.82189]
[1724352813693,0.79966824,2617.0,2616.5,3.82189]
[1724352813893,0.03689054,2616.8,2616.5,3.82189]
[1724352814109,0.03689054,2616.8,2616.1,3.82239]